[Event "FIDE WCCC U8 2018"]
[Site "Santiago de Compostela"]
[Date "2018.11.12"]
[Round "8"]
[White "Chen, Ryo"]
[Black "Nurgaliyev, Sauat"]
[Result "1-0"]
[ECO "B17"]
[WhiteElo "1573"]
[BlackElo "1764"]
[Annotator "NA RC"]
[PlyCount "111"]
[EventDate "2018.11.04"]
[EventType "swiss"]
[EventCountry "ESP"]
[SourceTitle "playchess.com"]
[Source "ChessBase"]
[SourceQuality "1"]
[TimeControl "40/5400+30:1800+30"]

1. e4 {[%emt 0:00:00]} c6 {[%emt 0:00:00]} 2. d4 {[%emt 0:00:00]} d5 {[%emt 0:00:00]} 3. Nc3 {[%emt 0:00:08]} dxe4 {[%emt 0:00:16]} 4. Nxe4 {[%emt 0:00:13]} Nd7 {[%emt 0:00:09]} 5. Nf3 {[%emt 0:00:35]} Ngf6 {[%emt 0:00:20]} 6. Ng3 {[%emt 0:00:12]} e6 {[%emt 0:01:02]} 7. Bd3 {[%emt 0:00:32]} Bd6 {[%emt 0:01:02]} 8. O-O {[%emt 0:00:49]} Qc7 {[%emt 0:01:40]} 9. Re1 {[%emt 0:01:32]} O-O {[%emt 0:01:34]} 10. Qe2 {[%emt 0:03:15]} h6 {[%emt 0:06:10]} 11. Ne4 {[%emt 0:01:06]} Be7 {[%emt 0:02:09]} 12. Nxf6+ {[%emt 0:00:47]} Nxf6 {[%emt 0:00:42]} 13. Ne5 {[%emt 0:00:40]} Rd8 {[%emt 0:03:14]} 14. c3 {[%emt 0:01:03]} b6 {[%emt 0:12:56]} 15. Qf3 {[%emt 0:03:09]} Bb7 {[%emt 0:03:17]} 16. Bxh6 {[%emt 0:01:11]} Bf8 {[%emt 0:19:09]} 17. Bg5 {[%emt 0:01:38]} Be7 {[%emt 0:00:30]} 18. Qh3 {[%emt 0:06:37]} c5 {[%emt 0:17:42]} 19. Nxf7 {[%emt 0:00:30]} Kxf7 {[%emt 0:00:30]} 20. Qxe6+ {[%emt 0:03:35]} Kf8 {[%emt 0:06:38]} 21. Bxf6 {[%emt 0:00:29]} Bxf6 {[%emt 0:01:04]} 22. Bc4 {[%emt 0:00:18]} Bd5 {[%emt 0:03:01]} 23. Bxd5 {[%emt 0:00:30]} Rxd5 {[%emt 0:00:30]} 24. Qxd5 {[%emt 0:00:30]} Rd8 {[%emt 0:00:48]} 25. Qf5 {[%emt 0:00:00]} cxd4 {[%emt 0:00:30]} 26. cxd4 {[%emt 0:00:00]} Kf7 {[%emt 0:01:58]} 27. Qe6+ {[%emt 0:00:24]} Kg6 {[%emt 0:00:30]} 28. Re3 {[%emt 0:00:43]} Qd7 {[%emt 0:00:46]} 29. Qxd7 {[%emt 0:01:06]} Rxd7 {[%emt 0:00:03]} 30. Rd1 {[%emt 0:00:20]} Rxd4 {[%emt 0:00:29]} 31. Rg3+ {[%emt 0:00:18]} Kf7 {[%emt 0:00:10]} 32. Rxd4 {[%emt 0:00:20]} Bxd4 {[%emt 0:00:56]} 33. b3 {[%emt 0:00:10]} a5 {[%emt 0:00:19]} 34. Rd3 {[%emt 0:00:10]} Bc5 {[%emt 0:00:44]} 35. Kf1 {[%emt 0:00:09]} Ke6 {[%emt 0:00:09]} 36. Ke2 {[%emt 0:00:06]} b5 {[%emt 0:00:26]} 37. f4 {[%emt 0:00:30]} a4 {[%emt 0:00:30]} 38. Kf3 {[%emt 0:00:00]} a3 {[%emt 0:00:12]} 39. Ke4 {[%emt 0:00:04]} b4 {[%emt 0:00:27]} 40. g4 {[%emt 0:00:00]} Bf2 {[%emt 0:00:00]} 41. f5+ {[%emt 0:00:45]} Kf6 {[%emt 0:00:34]} 42. Kf4 {[%emt 0:00:00]} Be1 {[%emt 0:00:21]} 43. g5+ {[%emt 0:00:15]} Kf7 {[%emt 0:00:11]} 44. Rd7+ {[%emt 0:00:10]} Kf8 {[%emt 0:00:13]} 45. Ke5 {[%emt 0:00:12]} Ke8 {[%emt 0:00:13]} 46. Rb7 {[%emt 0:00:18]} Bc3+ {[%emt 0:00:09]} 47. Ke6 {[%emt 0:00:08]} Kd8 {[%emt 0:00:13]} 48. f6 {[%emt 0:00:09]} Kc8 {[%emt 0:00:19]} 49. f7 {[%emt 0:00:14]} Kxb7 {[%emt 0:00:06]} 50. f8=Q {[%emt 0:00:12]} g6 {[%emt 0:00:09]} 51. h4 {[%emt 0:00:12]} Kc6 {[%emt 0:00:06]} 52. Qc8+ {[%emt 0:00:07]} Kb5 {[%emt 0:00:10]} 53. Kd5 {[%emt 0:00:30]} Be1 {[%emt 0:00:14]} 54. Qb7+ {[%emt 0:00:00]} Ka5 {[%emt 0:00:06]} 55. Kc6 {[%emt 0:00:18]} Bxh4 {[%emt 0:00:22]} 56. Qa8# 1-0

[Event "FIDE WCCC U8 2018"]
[Site "Santiago de Compostela"]
[Date "2018.11.12"]
[Round "8"]
[White "Golovchenko, Bogdan"]
[Black "Lu, Miaoyi"]
[Result "0-1"]
[ECO "A08"]
[WhiteElo "1556"]
[BlackElo "1717"]
[Annotator "NA RC"]
[PlyCount "96"]
[EventDate "2018.11.04"]
[EventType "swiss"]
[EventCountry "ESP"]
[SourceTitle "playchess.com"]
[Source "ChessBase"]
[SourceQuality "1"]
[TimeControl "40/5400+30:1800+30"]

1. Nf3 {[%emt 0:00:00]} d5 {[%emt 0:00:00]} 2. g3 {[%emt 0:00:08]} c5 {[%emt 0:00:54]} 3. Bg2 {[%emt 0:00:25]} g6 {[%emt 0:00:49]} 4. O-O {[%emt 0:00:32]} Bg7 {[%emt 0:00:14]} 5. d3 {[%emt 0:03:33]} Nc6 {[%emt 0:00:28]} 6. Nbd2 {[%emt 0:12:16]} Nf6 {[%emt 0:00:20]} 7. Nb3 {[%emt 0:07:33]} b6 {[%emt 0:03:05]} 8. c4 {[%emt 0:02:54]} O-O {[%emt 0:10:08]} 9. cxd5 {[%emt 0:09:37]} Nxd5 {[%emt 0:00:08]} 10. a3 {[%emt 0:03:00]} h6 {[%emt 0:02:56]} 11. Qc2 {[%emt 0:01:12]} e5 {[%emt 0:04:58]} 12. Rd1 {[%emt 0:08:59]} Be6 {[%emt 0:02:27]} 13. Bd2 {[%emt 0:06:16]} Rc8 {[%emt 0:08:06]} 14. Re1 {[%emt 0:13:27]} Qd7 {[%emt 0:11:56]} 15. Bc3 {[%emt 0:08:08]} Nd4 {[%emt 0:12:26]} 16. Bxd4 {[%emt 0:01:36]} cxd4 {[%emt 0:01:23]} 17. Qd1 {[%emt 0:00:21]} Qb5 {[%emt 0:02:13]} 18. Nfd2 {[%emt 0:03:18]} Ne7 {[%emt 0:05:29]} 19. a4 {[%emt 0:03:53]} Qb4 {[%emt 0:01:22]} 20. a5 {[%emt 0:00:51]} b5 {[%emt 0:05:17]} 21. a6 {[%emt 0:00:45]} Rc7 {[%emt 0:04:36]} 22. Na5 {[%emt 0:03:30]} Qxb2 {[%emt 0:03:56]} 23. Rb1 {[%emt 0:00:14]} Qa2 {[%emt 0:01:23]} 24. Rxb5 {[%emt 0:00:25]} Bd7 {[%emt 0:00:49]} 25. Rb7 {[%emt 0:00:43]} Qxa5 {[%emt 0:00:42]} 26. Nb3 {[%emt 0:01:04]} Qc3 {[%emt 0:00:11]} 27. Qb1 {[%emt 0:00:42]} Rfc8 {[%emt 0:02:53]} 28. h4 {[%emt 0:02:04]} Ba4 {[%emt 0:02:42]} 29. Kh2 {[%emt 0:02:13]} Bxb3 {[%emt 0:02:04]} 30. Rxb3 {[%emt 0:00:10]} Qc2 {[%emt 0:01:00]} 31. Rb7 {[%emt 0:00:01]} Qc3 {[%emt 0:03:35]} 32. Rb3 {[%emt 0:01:25]} Qa5 {[%emt 0:00:28]} 33. Bb7 {[%emt 0:00:09]} Rb8 {[%emt 0:01:14]} 34. Rd1 {[%emt 0:02:11]} Rc3 {[%emt 0:02:17]} 35. Rxc3 {[%emt 0:00:27]} dxc3 {[%emt 0:01:44]} 36. e4 {[%emt 0:00:43]} Qc5 {[%emt 0:00:31]} 37. Qc2 {[%emt 0:00:08]} Qd4 {[%emt 0:01:04]} 38. Rb1 {[%emt 0:00:26]} Rd8 {[%emt 0:00:55]} 39. Rd1 {[%emt 0:00:37]} Kh7 {[%emt 0:01:09]} 40. Kg2 {[%emt 0:00:00]} f5 {[%emt 0:00:00]} 41. f3 {[%emt 0:00:56]} Qe3 {[%emt 0:02:41]} 42. exf5 {[%emt 0:05:34]} Nxf5 {[%emt 0:00:38]} 43. Kh3 {[%emt 0:00:09]} Qd4 {[%emt 0:07:29]} 44. Qc1 {[%emt 0:01:31]} Qf2 {[%emt 0:00:37]} 45. Rg1 {[%emt 0:00:22]} Rxd3 {[%emt 0:01:24]} 46. Be4 {[%emt 0:00:11]} Rd2 {[%emt 0:01:41]} 47. Bxf5 {[%emt 0:01:04]} gxf5 {[%emt 0:00:41]} 48. Rh1 {[%emt 0:00:03]} Qg2# {[%emt 0:00:07]} 0-1

[Event "FIDE WCCC U8 2018"]
[Site "Santiago de Compostela"]
[Date "2018.11.12"]
[Round "8"]
[White "Yonal, Timur"]
[Black "Udipi, Kala Kishan"]
[Result "1/2-1/2"]
[ECO "A05"]
[WhiteElo "1524"]
[BlackElo "1653"]
[Annotator "NA RC"]
[PlyCount "130"]
[EventDate "2018.11.04"]
[EventType "swiss"]
[EventCountry "ESP"]
[SourceTitle "playchess.com"]
[Source "ChessBase"]
[SourceQuality "1"]
[TimeControl "40/5400+30:1800+30"]

1. Nf3 {[%emt 0:00:54]} Nf6 {[%emt 0:00:00]} 2. g3 {[%emt 0:00:19]} c6 {[%emt 0:00:30]} 3. Bg2 {[%emt 0:00:21]} d5 {[%emt 0:00:30]} 4. c4 {[%emt 0:00:16]} e6 {[%emt 0:01:57]} 5. d4 {[%emt 0:03:57]} Be7 {[%emt 0:00:33]} 6. Nc3 {[%emt 0:02:04]} O-O {[%emt 0:00:29]} 7. O-O {[%emt 0:00:14]} Nbd7 {[%emt 0:00:37]} 8. Qc2 {[%emt 0:16:31]} b6 {[%emt 0:01:04]} 9. b3 {[%emt 0:02:23]} Ba6 {[%emt 0:00:21]} 10. Nd2 {[%emt 0:02:19]} Rc8 {[%emt 0:03:09]} 11. e4 {[%emt 0:01:24]} e5 {[%emt 0:08:20]} 12. dxe5 {[%emt 0:05:41]} Nxe5 {[%emt 0:00:09]} 13. exd5 {[%emt 0:00:20]} cxd5 {[%emt 0:00:18]} 14. Re1 {[%emt 0:00:39]} Ng6 {[%emt 0:01:14]} 15. Bb2 {[%emt 0:16:06]} dxc4 {[%emt 0:02:22]} 16. bxc4 {[%emt 0:00:25]} Bxc4 {[%emt 0:00:40]} 17. Nxc4 {[%emt 0:00:05]} Rxc4 {[%emt 0:00:09]} 18. Rad1 {[%emt 0:05:36]} Qc7 {[%emt 0:00:18]} 19. Qd3 {[%emt 0:05:02]} Rd8 {[%emt 0:02:20]} 20. Qf3 {[%emt 0:00:15]} Rc8 {[%emt 0:06:00]} 21. Nb5 {[%emt 0:02:58]} Qc5 {[%emt 0:06:34]} 22. Na3 {[%emt 0:01:32]} Rb4 {[%emt 0:01:20]} 23. Rc1 {[%emt 0:01:13]} Rxb2 {[%emt 0:00:25]} 24. Rxc5 {[%emt 0:00:53]} Bxc5 {[%emt 0:02:12]} 25. Rf1 {[%emt 0:03:22]} Ne5 {[%emt 0:02:06]} 26. Qf5 {[%emt 0:00:49]} Re8 {[%emt 0:00:55]} 27. Nc2 {[%emt 0:09:51]} Neg4 {[%emt 0:08:49]} 28. Bf3 {[%emt 0:10:06]} g6 {[%emt 0:02:11]} 29. Qd3 {[%emt 0:00:25]} Ne5 {[%emt 0:00:58]} 30. Qc3 {[%emt 0:00:36]} Nxf3+ {[%emt 0:00:21]} 31. Kg2 {[%emt 0:00:36]} Rxc2 {[%emt 0:00:43]} 32. Qxc2 {[%emt 0:00:18]} Ne1+ {[%emt 0:00:10]} 33. Rxe1 {[%emt 0:00:08]} Rxe1 {[%emt 0:00:06]} 34. Qd2 {[%emt 0:00:26]} Re8 {[%emt 0:01:10]} 35. f3 {[%emt 0:00:24]} Re3 {[%emt 0:01:02]} 36. Qd8+ {[%emt 0:00:48]} Kg7 {[%emt 0:00:09]} 37. Qd2 {[%emt 0:00:07]} Ra3 {[%emt 0:00:26]} 38. Qb2 {[%emt 0:01:18]} Be7 {[%emt 0:03:20]} 39. h4 {[%emt 0:00:16]} Kg8 {[%emt 0:01:28]} 40. Qd2 {[%emt 0:00:00]} Ne8 {[%emt 0:00:00]} 41. Qe2 {[%emt 0:00:57]} Kf8 {[%emt 0:02:22]} 42. Qb2 {[%emt 0:02:58]} f6 {[%emt 0:00:48]} 43. g4 {[%emt 0:00:13]} Ra5 {[%emt 0:08:29]} 44. Qd2 {[%emt 0:02:57]} Kg7 {[%emt 0:02:10]} 45. Qe2 {[%emt 0:00:50]} Kf8 {[%emt 0:01:16]} 46. Qd2 {[%emt 0:00:12]} Nd6 {[%emt 0:02:12]} 47. Qe2 {[%emt 0:02:31]} Kf7 {[%emt 0:04:09]} 48. Qc2 {[%emt 0:03:06]} b5 {[%emt 0:02:28]} 49. Qd2 {[%emt 0:02:53]} Nc4 {[%emt 0:01:03]} 50. Qd5+ {[%emt 0:00:46]} Kg7 {[%emt 0:01:00]} 51. Qd7 {[%emt 0:01:24]} Kf8 {[%emt 0:01:14]} 52. Qc8+ {[%emt 0:00:37]} Kf7 {[%emt 0:00:11]} 53. Qc6 {[%emt 0:01:09]} Rxa2+ {[%emt 0:00:36]} 54. Kh3 {[%emt 0:00:56]} Rb2 {[%emt 0:04:27]} 55. Qd5+ {[%emt 0:00:17]} Kg7 {[%emt 0:01:51]} 56. Qb7 {[%emt 0:00:17]} Kf8 {[%emt 0:00:09]} 57. Qa8+ {[%emt 0:00:11]} Kf7 {[%emt 0:00:50]} 58. Qxa7 {[%emt 0:01:17]} Ke6 {[%emt 0:01:45]} 59. Qd4 {[%emt 0:00:30]} Re2 {[%emt 0:06:25]} 60. f4 {[%emt 0:04:35]} Re3+ {[%emt 0:02:03]} 61. Kg2 {[%emt 0:00:50]} Bd6 {[%emt 0:01:01]} 62. f5+ {[%emt 0:00:40]} gxf5 {[%emt 0:00:46]} 63. gxf5+ {[%emt 0:00:07]} Kxf5 {[%emt 0:02:14]} 64. Qd5+ {[%emt 0:00:32]} Be5 {[%emt 0:08:22]} 65. Qxb5 {[%emt 0:00:49]} Re4 {[%emt 0:03:38]} 1/2-1/2

[Event "FIDE WCCC U8 2018"]
[Site "Santiago de Compostela"]
[Date "2018.11.12"]
[Round "8"]
[White "Chen, Zhiyuan"]
[Black "Usov, Aleksandr E."]
[Result "1-0"]
[ECO "A06"]
[WhiteElo "1459"]
[BlackElo "1640"]
[Annotator "NA RC"]
[PlyCount "61"]
[EventDate "2018.11.04"]
[EventType "swiss"]
[EventCountry "ESP"]
[SourceTitle "playchess.com"]
[Source "ChessBase"]
[SourceQuality "1"]
[TimeControl "40/5400+30:1800+30"]

1. Nf3 {[%emt 0:00:00]} d5 {[%emt 0:00:00]} 2. g3 {[%emt 0:00:00]} c6 {[%emt 0:00:05]} 3. Bg2 {[%emt 0:00:00]} Bf5 {[%emt 0:00:11]} 4. O-O {[%emt 0:00:25]} h6 {[%emt 0:00:08]} 5. d4 {[%emt 0:00:19]} e6 {[%emt 0:01:07]} 6. c4 {[%emt 0:05:59]} Nf6 {[%emt 0:01:01]} 7. Nc3 {[%emt 0:00:17]} Be7 {[%emt 0:01:06]} 8. Qb3 {[%emt 0:01:47]} Qc8 {[%emt 0:01:10]} 9. Bf4 {[%emt 0:01:14]} Nbd7 {[%emt 0:01:03]} 10. Rac1 {[%emt 0:00:55]} O-O {[%emt 0:00:58]} 11. Ne5 {[%emt 0:01:04]} Re8 {[%emt 0:07:05]} 12. cxd5 {[%emt 0:01:51]} exd5 {[%emt 0:05:59]} 13. Nxd5 {[%emt 0:00:18]} Nxd5 {[%emt 0:10:59]} 14. Bxd5 {[%emt 0:00:09]} Nxe5 {[%emt 0:01:25]} 15. Bxe5 {[%emt 0:03:44]} cxd5 {[%emt 0:02:05]} 16. Rxc8 {[%emt 0:00:09]} Raxc8 {[%emt 0:00:36]} 17. Qxd5 {[%emt 0:00:13]} Be6 {[%emt 0:31:03]} 18. Qxb7 {[%emt 0:00:14]} Bxa2 {[%emt 0:01:05]} 19. b3 {[%emt 0:13:35]} f6 {[%emt 0:03:57]} 20. Bc7 {[%emt 0:01:26]} Kf8 {[%emt 0:02:37]} 21. Rc1 {[%emt 0:01:32]} g6 {[%emt 0:02:25]} 22. Rc2 {[%emt 0:00:22]} Bb1 {[%emt 0:00:19]} 23. Rc3 {[%emt 0:00:52]} Bf5 {[%emt 0:00:46]} 24. e4 {[%emt 0:00:46]} Bh3 {[%emt 0:04:09]} 25. f3 Bd7 {[%emt 0:01:53]} 26. d5 {[%emt 0:03:53]} Kg8 {[%emt 0:04:42]} 27. d6 {[%emt 0:02:39]} Bf8 {[%emt 0:02:36]} 28. Ba5 {[%emt 0:01:19]} Rxc3 {[%emt 0:04:32]} 29. Bxc3 {[%emt 0:00:08]} Be6 {[%emt 0:05:41]} 30. Bxf6 {[%emt 0:00:19]} Bxd6 {[%emt 0:01:28]} 31. Qg7# {[%emt 0:00:06]} 1-0

[Event "FIDE WCCC U8 2018"]
[Site "Santiago de Compostela"]
[Date "2018.11.12"]
[Round "8"]
[White "Villa Tornero, Alex"]
[Black "Schnaider, Ilan"]
[Result "1/2-1/2"]
[ECO "C00"]
[WhiteElo "1441"]
[BlackElo "1723"]
[Annotator "NA RC"]
[PlyCount "137"]
[EventDate "2018.11.04"]
[EventType "swiss"]
[EventCountry "ESP"]
[SourceTitle "playchess.com"]
[Source "ChessBase"]
[SourceQuality "1"]
[TimeControl "40/5400+30:1800+30"]

1. e4 {[%emt 0:00:00]} e6 {[%emt 0:00:00]} 2. d4 {[%emt 0:00:13]} d5 {[%emt 0:00:04]} 3. Bd3 {[%emt 0:01:03]} dxe4 {[%emt 0:03:53]} 4. Bxe4 {[%emt 0:00:17]} Nf6 {[%emt 0:00:28]} 5. Bf3 {[%emt 0:00:39]} Nc6 {[%emt 0:00:28]} 6. Ne2 {[%emt 0:01:05]} Be7 {[%emt 0:00:24]} 7. O-O {[%emt 0:01:35]} O-O {[%emt 0:00:12]} 8. Be3 {[%emt 0:02:55]} Nd5 {[%emt 0:02:23]} 9. c3 {[%emt 0:03:00]} e5 {[%emt 0:02:29]} 10. Qb3 {[%emt 0:14:15]} Nxe3 {[%emt 0:01:53]} 11. fxe3 {[%emt 0:00:26]} Bg5 {[%emt 0:00:26]} 12. Bxc6 {[%emt 0:10:25]} Bxe3+ {[%emt 0:01:03]} 13. Kh1 {[%emt 0:03:22]} bxc6 {[%emt 0:00:13]} 14. dxe5 {[%emt 0:00:28]} Qg5 {[%emt 0:09:38]} 15. Na3 {[%emt 0:04:12]} Be6 {[%emt 0:02:00]} 16. c4 {[%emt 0:03:36]} Qxe5 {[%emt 0:01:22]} 17. Nc2 {[%emt 0:03:04]} Bh6 {[%emt 0:02:08]} 18. Ned4 {[%emt 0:05:58]} Rab8 {[%emt 0:02:16]} 19. Nxc6 {[%emt 0:03:18]} Rxb3 {[%emt 0:00:54]} 20. Nxe5 {[%emt 0:00:35]} Rxb2 {[%emt 0:00:15]} 21. Nd4 {[%emt 0:00:20]} Rd8 {[%emt 0:01:46]} 22. Nec6 {[%emt 0:02:51]} Rd6 {[%emt 0:03:17]} 23. c5 {[%emt 0:01:43]} Bd5 {[%emt 0:03:09]} 24. Rae1 {[%emt 0:09:43]} Bxg2+ {[%emt 0:16:10]} 25. Kg1 {[%emt 0:00:03]} Bxc6 {[%emt 0:00:21]} 26. cxd6 {[%emt 0:01:44]} Bd7 {[%emt 0:12:07]} 27. dxc7 {[%emt 0:01:27]} Kf8 {[%emt 0:00:29]} 28. Ne6+ {[%emt 0:10:42]} Bxe6 {[%emt 0:00:21]} 29. Rxe6 {[%emt 0:00:08]} Rc2 {[%emt 0:00:22]} 30. Rd1 {[%emt 0:01:07]} fxe6 {[%emt 0:00:59]} 31. Rd8+ {[%emt 0:00:11]} Kf7 {[%emt 0:00:19]} 32. c8=Q {[%emt 0:00:11]} Rxc8 {[%emt 0:00:01]} 33. Rxc8 {[%emt 0:00:18]} Bg5 {[%emt 0:00:34]} 34. Kf2 {[%emt 0:00:23]} Bf4 {[%emt 0:00:53]} 35. h3 {[%emt 0:00:22]} Kf6 {[%emt 0:01:57]} 36. Ra8 {[%emt 0:00:18]} Bc7 {[%emt 0:00:26]} 37. Kf3 {[%emt 0:00:31]} Bb6 {[%emt 0:00:19]} 38. Rf8+ {[%emt 0:01:38]} Ke7 {[%emt 0:00:09]} 39. Rb8 {[%emt 0:01:42]} Kf6 {[%emt 0:00:23]} 40. Ke4 {[%emt 0:00:00]} h6 {[%emt 0:00:00]} 41. h4 {[%emt 0:00:55]} Bc5 {[%emt 0:01:23]} 42. a4 {[%emt 0:00:34]} Bb6 {[%emt 0:00:30]} 43. Rb7 {[%emt 0:00:43]} g6 {[%emt 0:00:28]} 44. Rd7 {[%emt 0:01:34]} Bf2 {[%emt 0:01:48]} 45. a5 {[%emt 0:00:48]} Bg1 {[%emt 0:00:29]} 46. a6 {[%emt 0:00:51]} Bf2 {[%emt 0:00:20]} 47. Rb7 {[%emt 0:01:15]} Bg1 {[%emt 0:00:25]} 48. Rb8 {[%emt 0:00:37]} Bc5 {[%emt 0:00:39]} 49. Rb7 {[%emt 0:00:33]} Bg1 {[%emt 0:00:12]} 50. Rh7 {[%emt 0:00:11]} h5 {[%emt 0:00:22]} 51. Rb7 {[%emt 0:04:49]} Bf2 {[%emt 0:00:25]} 52. Rc7 {[%emt 0:01:15]} Bg1 {[%emt 0:02:11]} 53. Rc1 {[%emt 0:00:14]} Bb6 {[%emt 0:01:05]} 54. Rf1+ {[%emt 0:00:16]} Ke7 {[%emt 0:00:17]} 55. Ke5 {[%emt 0:00:43]} Bc7+ {[%emt 0:01:03]} 56. Kd4 {[%emt 0:01:07]} Bb6+ {[%emt 0:02:11]} 57. Kc4 {[%emt 0:00:35]} Be3 {[%emt 0:01:46]} 58. Kb5 {[%emt 0:00:54]} Kd6 {[%emt 0:01:01]} 59. Rf3 {[%emt 0:01:42]} Bd4 {[%emt 0:01:28]} 60. Rg3 {[%emt 0:01:22]} Bf2 {[%emt 0:00:24]} 61. Rxg6 {[%emt 0:00:18]} Bxh4 {[%emt 0:00:12]} 62. Rh6 {[%emt 0:00:12]} Bf2 {[%emt 0:00:27]} 63. Rxh5 {[%emt 0:00:23]} e5 {[%emt 0:00:44]} 64. Rh2 {[%emt 0:03:12]} Bd4 {[%emt 0:00:15]} 65. Kc4 {[%emt 0:00:26]} Be3 {[%emt 0:00:30]} 66. Re2 {[%emt 0:00:28]} Bd4 {[%emt 0:00:15]} 67. Rd2 {[%emt 0:00:26]} Kc6 {[%emt 0:00:15]} 68. Rxd4 {[%emt 0:01:33]} exd4 {[%emt 0:00:10]} 69. Kxd4 {[%emt 0:00:09]} 1/2-1/2

[Event "FIDE WCCC U8 2018"]
[Site "Santiago de Compostela"]
[Date "2018.11.12"]
[Round "8"]
[White "Mrinmoy Rajkhowa"]
[Black "Mamedov, Edgar"]
[Result "1-0"]
[ECO "B01"]
[WhiteElo "1294"]
[BlackElo "1599"]
[Annotator "NA RC"]
[PlyCount "150"]
[EventDate "2018.11.04"]
[EventType "swiss"]
[EventCountry "ESP"]
[SourceTitle "playchess.com"]
[Source "ChessBase"]
[SourceQuality "1"]
[TimeControl "40/5400+30:1800+30"]

1. e4 {[%emt 0:00:00]} d5 {[%emt 0:00:35]} 2. exd5 {[%emt 0:00:16]} Qxd5 {[%emt 0:00:38]} 3. Nc3 {[%emt 0:00:20]} Qd8 {[%emt 0:00:41]} 4. d4 {[%emt 0:00:54]} Nf6 {[%emt 0:00:26]} 5. Nf3 {[%emt 0:00:53]} Bg4 {[%emt 0:00:39]} 6. Be2 {[%emt 0:00:36]} e6 {[%emt 0:00:33]} 7. h3 {[%emt 0:01:37]} Bxf3 {[%emt 0:02:07]} 8. Bxf3 {[%emt 0:00:09]} c6 {[%emt 0:00:20]} 9. O-O {[%emt 0:01:38]} Be7 {[%emt 0:00:42]} 10. Ne4 {[%emt 0:03:59]} Nbd7 {[%emt 0:01:21]} 11. Bf4 {[%emt 0:02:28]} Nxe4 {[%emt 0:00:26]} 12. Bxe4 {[%emt 0:00:07]} Nf6 {[%emt 0:00:14]} 13. Bf3 {[%emt 0:00:21]} O-O {[%emt 0:00:38]} 14. c3 {[%emt 0:00:30]} Qd7 {[%emt 0:00:59]} 15. Qc2 {[%emt 0:02:55]} Nd5 {[%emt 0:03:30]} 16. Bg3 {[%emt 0:00:57]} Bd6 {[%emt 0:02:03]} 17. Bxd6 {[%emt 0:02:05]} Qxd6 {[%emt 0:00:16]} 18. Rad1 {[%emt 0:00:58]} Rad8 {[%emt 0:02:56]} 19. Qb3 {[%emt 0:02:19]} Rd7 {[%emt 0:01:32]} 20. Rfe1 {[%emt 0:03:12]} h6 {[%emt 0:00:51]} 21. a3 {[%emt 0:08:15]} Rfd8 {[%emt 0:01:36]} 22. Qc2 {[%emt 0:02:26]} Qc7 {[%emt 0:04:04]} 23. Rd2 {[%emt 0:09:16]} c5 {[%emt 0:02:28]} 24. Red1 {[%emt 0:04:06]} c4 {[%emt 0:01:25]} 25. Re1 {[%emt 0:04:46]} b5 {[%emt 0:03:00]} 26. Bxd5 {[%emt 0:00:55]} Rxd5 {[%emt 0:00:19]} 27. Rde2 {[%emt 0:00:17]} a5 {[%emt 0:05:31]} 28. Re5 {[%emt 0:02:14]} Qb6 {[%emt 0:02:59]} 29. Rxd5 {[%emt 0:02:00]} Rxd5 {[%emt 0:00:23]} 30. Re5 {[%emt 0:00:51]} Rxe5 {[%emt 0:21:08]} 31. dxe5 {[%emt 0:00:06]} Qc6 {[%emt 0:02:22]} 32. Qe2 {[%emt 0:03:26]} Qd5 {[%emt 0:04:24]} 33. Kf1 {[%emt 0:02:24]} a4 {[%emt 0:03:41]} 34. f3 {[%emt 0:02:39]} Kf8 {[%emt 0:02:11]} 35. Kf2 {[%emt 0:02:00]} g5 {[%emt 0:08:38]} 36. Qe3 {[%emt 0:01:47]} Kg7 {[%emt 0:00:42]} 37. g4 {[%emt 0:00:41]} Qd1 {[%emt 0:00:46]} 38. Qe1 {[%emt 0:03:14]} Qc2+ {[%emt 0:01:07]} 39. Qe2 {[%emt 0:00:15]} Qc1 {[%emt 0:00:19]} 40. Kg2 {[%emt 0:00:00]} Kf8 {[%emt 0:00:00]} 41. Qf2 {[%emt 0:03:58]} Kg7 {[%emt 0:03:51]} 42. Qe2 {[%emt 0:00:06]} Qb1 {[%emt 0:02:32]} 43. Qd2 {[%emt 0:01:37]} Kg6 {[%emt 0:02:34]} 44. Qe2 {[%emt 0:00:41]} Qc1 {[%emt 0:00:14]} 45. Qe4+ {[%emt 0:00:36]} Kg7 {[%emt 0:00:14]} 46. Qe2 {[%emt 0:00:07]} h5 {[%emt 0:01:34]} 47. gxh5 {[%emt 0:04:17]} Kh6 {[%emt 0:01:04]} 48. Kh2 {[%emt 0:03:24]} Qf4+ {[%emt 0:01:33]} 49. Kg2 {[%emt 0:00:08]} Kxh5 {[%emt 0:00:39]} 50. Qe1 {[%emt 0:01:32]} Kh6 {[%emt 0:07:00]} 51. Qe2 {[%emt 0:01:02]} Kg7 {[%emt 0:03:39]} 52. Qe1 {[%emt 0:02:26]} Kf8 {[%emt 0:03:16]} 53. Qe2 {[%emt 0:00:12]} Qc1 {[%emt 0:00:30]} 54. Qf2 {[%emt 0:02:16]} Ke8 {[%emt 0:01:10]} 55. Kh2 {[%emt 0:01:27]} Qf4+ {[%emt 0:01:04]} 56. Qg3 {[%emt 0:00:23]} Qd2+ {[%emt 0:00:31]} 57. Qg2 {[%emt 0:00:12]} Qe3 {[%emt 0:00:20]} 58. Qg3 {[%emt 0:02:04]} Qe2+ {[%emt 0:00:13]} 59. Qg2 {[%emt 0:00:27]} Qxe5+ {[%emt 0:00:07]} 60. Kh1 {[%emt 0:00:53]} Qe3 {[%emt 0:02:25]} 61. Kh2 {[%emt 0:00:48]} Kd7 {[%emt 0:01:18]} 62. Kg3 {[%emt 0:00:20]} f5 {[%emt 0:01:35]} 63. Kh2 {[%emt 0:00:21]} Ke7 {[%emt 0:00:22]} 64. Qg3 {[%emt 0:00:35]} Qf4 {[%emt 0:01:16]} 65. Kg2 {[%emt 0:00:20]} Qxg3+ {[%emt 0:00:50]} 66. Kxg3 {[%emt 0:00:01]} Kf6 {[%emt 0:00:38]} 67. f4 {[%emt 0:00:27]} gxf4+ {[%emt 0:00:42]} 68. Kxf4 {[%emt 0:00:00]} e5+ {[%emt 0:00:00]} 69. Kf3 {[%emt 0:00:00]} Kg5 {[%emt 0:00:00]} 70. Ke3 {[%emt 0:00:19]} Kh4 {[%emt 0:00:11]} 71. Kf3 {[%emt 0:00:09]} Kxh3 {[%emt 0:00:11]} 72. Ke3 {[%emt 0:00:04]} Kg3 {[%emt 0:00:13]} 73. Ke2 {[%emt 0:00:04]} f4 {[%emt 0:00:08]} 74. Ke1 {[%emt 0:00:10]} f3 {[%emt 0:00:09]} 75. Kf1 {[%emt 0:00:06]} f2 {[%emt 0:00:12]} 1-0